bitfinex/quotes_ETHUSD_20250725
["timestamp","ask_amount","ask_price","bid_price","bid_amount"]
[1753471877754,8.87605058,3651.7,3651.6,0.001]
[1753471877934,38.87605058,3651.7,3651.6,0.001]
[1753471880758,40.52205058,3651.7,3651.6,0.001]
[1753471880943,42.22654266,3651.7,3651.6,0.001]
[1753471881555,42.37911204,3651.7,3651.6,0.001]
[1753471881869,42.22654266,3651.7,3651.6,0.001]
[1753471882243,42.37911522,3651.7,3651.6,0.001]
[1753471883224,42.22654266,3651.7,3651.6,0.001]
[1753471883930,42.37906277,3651.7,3651.6,0.001]
[1753471884641,0.55,3651.4,3650.3,0.001]
[1753471884841,1.122,3650.4,3650.3,0.001]
[1753471885046,9.93042581,3650.4,3650.3,0.001]
[1753471885248,11.34662581,3650.4,3650.3,0.001]
[1753471885481,25.98060349,3650.4,3650.3,0.001]
[1753471887243,21.82497768,3650.4,3650.3,0.001]
[1753471887550,25.99060317,3650.4,3650.3,0.001]
[1753471888080,26.45560317,3650.4,3650.3,0.001]
[1753471888957,25.99060317,3650.4,3650.3,0.001]
[1753471889573,17.63397768,3650.4,3650.3,0.001]
[1753471889753,20.15397768,3650.4,3650.3,0.001]
[1753471890083,55.93710349,3650.4,3650.3,0.001]
[1753471891083,57.58310349,3650.4,3650.3,0.001]
[1753471891977,64.64310349,3650.4,3650.3,0.001]
[1753471892181,66.82259525,3650.4,3650.3,0.001]
[1753471892388,66.82259525,3650.4,3649.5,0.001]
[1753471892587,7.3675263,3649.6,3649.5,0.001]
[1753471892885,39.8895263,3649.6,3649.5,0.001]
[1753471893073,54.3895263,3649.6,3649.5,0.001]
[1753471893273,56.3253263,3649.6,3649.5,0.001]
[1753471893844,55.8603263,3649.6,3649.5,0.001]
[1753471895913,25.8603263,3649.6,3649.5,0.001]
[1753471896086,55.8603263,3649.6,3649.5,0.001]
[1753471898346,17.5,3649.6,3649.5,0.4386]
[1753471898546,14.5,3649.6,3649.5,1.3634]
[1753471898774,17.021,3649.6,3649.5,5.17290138]
[1753471899055,20.022,3649.6,3649.5,5.17290138]
[1753471899382,20.022,3649.6,3649.5,2.4328]
[1753471900178,20.022,3649.6,3649.5,0.4386]
[1753471900586,20.022,3649.6,3649.5,1.3634]
[1753471900896,20.022,3649.6,3649.5,0.001]
[1753471901078,22.7620263,3649.6,3649.5,0.001]
[1753471901654,20.022,3649.6,3649.5,0.4386]
[1753471901954,20.021,3649.6,3649.5,5.20040138]
[1753471902284,17.5,3649.6,3649.5,5.20040138]
[1753471902460,20.022,3649.6,3649.5,5.33720138]
[1753471902662,14.5,3649.6,3649.5,6.14504017]
[1753471902861,32.87532025,3650.6,3650.1,1.0969]
[1753471903066,2.73949176,3650.4,3650.2,1.3624]
[1753471903270,20.022,3650.3,3650.2,1.3624]
[1753471904692,17.022,3650.3,3650.2,4.10197591]
[1753471904893,17.021,3650.3,3650.2,4.10197591]
[1753471905096,14.5,3650.3,3650.2,5.03263321]
[1753471906794,2.521,3650.7,3650.3,2.73950086]
[1753471907115,30.0,3652.5,3651.4,2.73867557]
[1753471907317,14.78963542,3652.4,3651.8,1.2264]
[1753471907610,0.15283542,3652.3,3652.1,2.73813637]
[1753471907782,0.15283542,3652.3,3652.2,0.4376]
[1753471908105,0.15283542,3652.6,3652.2,4.10042915]
[1753471908319,14.5,3652.3,3652.2,2.9022099]
[1753471908483,14.5,3652.3,3652.2,2.87482915]
[1753471908810,14.5,3652.3,3652.2,5.32682915]
[1753471909307,14.5,3652.3,3652.2,2.5888]
[1753471909973,14.5,3652.3,3652.2,5.32687568]
[1753471910942,14.5,3652.3,3652.2,2.5888]
[1753471911121,14.5,3652.3,3651.8,3.81771621]
[1753471911410,17.021,3652.3,3651.9,0.1368]
[1753471911705,17.021,3652.3,3651.9,0.4581]
[1753471911706,0.1368,3652.2,3651.9,0.4581]
[1753471911907,2.521,3652.4,3652.0,1.4293]
[1753471912108,2.521,3652.6,3652.3,2.73798057]
[1753471912409,3.8959358,3653.0,3652.4,1.4293]
[1753471912410,0.1368,3652.7,3652.4,1.4293]
[1753471912607,0.1368,3652.7,3652.3,2.73798936]
[1753471912608,2.6608,3652.8,3652.3,0.1368]
[1753471912908,2.524,3652.8,3652.5,1.4293]
[1753471913108,0.002,3653.0,3652.7,1.0794]
[1753471913421,14.502,3653.0,3652.9,2.87435098]
[1753471913607,0.002,3653.0,3652.9,3.95375098]
[1753471913785,0.002,3653.0,3652.9,5.38305098]
[1753471913984,0.002,3653.0,3652.9,6.19785777]
[1753471915283,0.002,3653.0,3652.9,8.72285777]
[1753471916918,0.002,3653.0,3652.9,3.7402]
[1753471917118,0.002,3653.0,3652.9,4.1983]
[1753471917278,0.002,3653.0,3652.9,1.2162]
[1753471917606,0.002,3653.0,3652.9,2.524]
[1753471917607,0.8912,3653.0,3652.9,2.524]
[1753471917918,3.62869243,3653.0,3652.8,0.1368]
[1753471918227,0.8892,3652.9,3652.8,2.6608]
[1753471918385,0.002,3653.0,3652.9,0.9712]
[1753471918724,0.002,3653.0,3652.9,4.16685098]
[1753471919026,0.002,3653.0,3652.9,6.23758002]
[1753471920422,0.002,3653.0,3652.9,7.80505098]
[1753471921020,0.8912,3653.0,3652.8,0.1368]
[1753471921223,0.002,3653.0,3652.9,2.524]
[1753471922323,0.002,3653.0,3652.8,0.1368]
[1753471922495,0.002,3653.0,3652.9,2.524]
[1753471922899,0.002,3653.0,3652.9,2.523]
[1753471923195,0.8912,3653.0,3652.9,2.523]
[1753471923444,0.8912,3653.0,3652.8,0.1368]
[1753471923720,0.002,3653.0,3652.9,2.523]
[1753471924683,0.002,3653.0,3652.9,5.26055098]
[1753471924884,0.002,3653.0,3652.9,5.71865098]
[1753471925084,0.002,3653.0,3652.9,8.52296122]
[1753471927479,0.002,3653.0,3652.9,5.99996122]
[1753471927685,0.002,3653.0,3652.9,7.55076122]
[1753471928040,0.002,3653.0,3652.9,8.52196122]
[1753471928486,0.002,3653.1,3653.0,2.73747604]
[1753471928687,0.002,3653.1,3653.0,6.99148778]
[1753471928926,0.002,3653.1,3653.0,6.96411302]
[1753471929131,1e-08,3653.1,3653.0,7.51411302]
[1753471929285,1e-08,3653.1,3653.0,10.51411302]
[1753471929486,0.002,3653.8,3653.7,3.90935158]
[1753471929739,0.002,3653.8,3653.7,7.12436014]
[1753471929947,0.002,3653.8,3653.7,8.52629063]
[1753471930655,0.002,3653.8,3653.7,6.00329063]
[1753471930832,0.002,3653.8,3653.7,3.90935158]
[1753471931029,0.002,3653.8,3653.7,6.43235158]
[1753471932023,0.002,3653.8,3653.7,3.6964]
[1753471932229,0.002,3653.8,3653.7,6.43335158]
[1753471932430,0.002,3653.8,3653.7,6.43235158]
[1753471935250,0.002,3653.8,3653.7,3.90935158]
[1753471935459,0.8912,3653.8,3653.3,1.0748]
[1753471935658,0.8892,3653.7,3653.4,2.521]
[1753471935833,0.8892,3653.6,3653.5,2.7371014]
[1753471936041,15.3892,3653.6,3653.5,2.7371014]
[1753471937345,14.5,3653.6,3653.5,2.7371014]
[1753471937851,15.3892,3653.6,3653.5,2.7371014]
[1753471938260,14.5,3653.6,3653.5,2.7371014]
[1753471939447,14.5,3653.6,3653.5,2.8739014]
[1753471940342,14.5,3653.6,3653.5,5.3939014]
[1753471943666,0.002,3653.8,3653.7,2.73695158]
[1753471943867,0.002,3653.8,3653.7,6.49512109]
[1753471944033,0.002,3653.8,3653.7,7.85335158]
[1753471945374,1e-08,3653.8,3653.7,7.85335158]
[1753471945545,1e-08,3653.8,3653.7,11.40335158]
[1753471945740,1e-08,3653.8,3653.7,13.18317329]
[1753471946042,1e-08,3654.3,3654.2,2.73657708]
[1753471946248,1e-08,3654.3,3654.2,6.49174285]
[1753471946575,1e-08,3654.3,3654.2,11.05753339]
[1753471946780,1e-08,3654.6,3654.5,3.80835244]
[1753471947076,1e-08,3654.6,3654.5,7.89955476]
[1753471947246,1e-08,3654.6,3654.5,9.25779124]
[1753471949376,1e-08,3654.6,3654.5,9.25679124]
[1753471949969,1e-08,3654.6,3654.5,5.35319124]
[1753471950157,1e-08,3654.6,3654.5,7.89855476]
[1753471950488,1.34640001,3654.6,3654.5,0.1368]
[1753471950672,1.34640001,3654.6,3654.5,2.519]
[1753471951773,15.84640001,3654.6,3654.5,2.519]
[1753471953175,14.50000001,3654.6,3654.5,2.519]
[1753471953502,15.84640001,3654.6,3654.5,2.519]
[1753471954376,15.40410001,3654.6,3654.5,2.52]
[1753471954583,14.50000001,3654.6,3654.5,5.25635244]
[1753471955025,15.40410001,3654.6,3654.5,5.25635244]
[1753471955329,14.50000001,3654.6,3654.5,5.69840912]
[1753471956309,14.50000001,3654.6,3654.5,5.25635244]
[1753471957731,14.50000001,3654.6,3654.5,6.79335244]
[1753471958009,14.50000001,3654.6,3654.5,7.73065244]
[1753471958010,1e-08,3654.6,3654.5,7.73065244]
[1753471958417,1e-08,3654.6,3654.5,10.73065244]
[1753471960728,1e-08,3654.6,3654.5,10.86745244]
[1753471960939,1e-08,3654.6,3654.5,12.2278417]
[1753471963825,1e-08,3654.6,3654.5,9.7078417]
[1753471964011,1e-08,3654.6,3654.5,12.2268417]
[1753471970585,1e-08,3654.6,3654.5,12.7768417]
[1753471972345,0.4705,3656.1,3655.4,3.87767872]
[1753471972346,0.002,3656.1,3655.4,3.87767872]
[1753471972659,0.002,3656.1,3656.0,4.01402975]
[1753471972850,0.002,3656.1,3656.0,6.55738204]
[1753471973174,0.002,3656.1,3656.0,6.99182975]
[1753471973378,0.002,3656.1,3656.0,6.53002975]
[1753471973676,0.002,3656.1,3656.0,7.59261424]
[1753471975082,0.8776,3656.1,3656.0,7.59261424]
[1753471978080,0.002,3656.1,3656.0,7.59261424]
[1753471981668,0.002,3656.1,3656.0,8.05441424]
[1753471982563,0.002,3656.1,3656.0,7.59261424]
[1753471982902,1.3461,3656.1,3656.0,6.45061424]
[1753471983115,0.002,3656.1,3656.0,5.38802975]
[1753471983280,0.002,3656.1,3656.0,5.41538204]
[1753471983484,0.002,3656.1,3656.0,5.87718204]
[1753471983683,0.002,3656.1,3656.0,5.38802975]
[1753471983884,1.3461,3656.1,3656.0,2.87202975]
[1753471984087,1.3461,3656.1,3656.0,5.38402975]
[1753471984267,1.3461,3656.1,3656.0,2.87202975]
[1753471984467,0.8776,3656.1,3656.0,5.38402975]
[1753471986422,1.3461,3656.1,3656.0,5.38402975]
[1753471986618,1.3461,3656.1,3656.0,2.87202975]
[1753471986797,1.5983,3656.1,3656.0,0.1368]
[1753471986980,2.7722,3656.1,3656.0,2.6488]
[1753471987382,2.7722,3656.1,3656.0,0.1368]
[1753471987587,1.172,3656.0,3654.6,3.33929076]
[1753471987788,1.1562,3655.8,3655.1,2.512]
[1753471988121,1.3441,3655.7,3655.5,2.8723633]
[1753471988298,0.8756,3655.6,3655.5,5.24760388]
[1753471988493,0.8756,3655.6,3655.5,5.27495991]
[1753471988701,0.8756,3655.6,3655.5,5.41175991]
[1753471988886,1.3441,3655.6,3655.5,5.41175991]
[1753471989529,0.8756,3655.6,3655.5,5.38440388]
[1753471989706,0.8756,3655.9,3655.8,2.73537939]
[1753471989931,0.8756,3655.9,3655.8,5.24737939]
[1753471990086,0.8756,3655.9,3655.8,5.38417939]
[1753471990502,0.002,3656.1,3655.9,2.73530457]
[1753471990705,0.002,3656.1,3656.0,5.27458204]
[1753471990886,0.002,3656.1,3656.0,6.3344107]
[1753471991116,0.002,3656.1,3656.0,6.30705841]
[1753471992821,0.8776,3656.1,3656.0,6.30705841]
[1753471993192,0.8776,3656.1,3656.0,5.38402975]
[1753471993600,1.2419,3656.1,3656.0,2.87202975]
[1753471993897,1.2419,3656.1,3656.0,5.38402975]
[1753471994119,1.2419,3656.1,3656.0,2.87202975]
[1753471994297,1.2419,3656.1,3656.0,5.38402975]
[1753471995927,0.8776,3656.1,3656.0,5.38402975]
[1753472000335,0.8776,3656.1,3656.0,2.87202975]
[1753472000536,0.8776,3656.1,3656.0,5.38402975]
[1753472004846,0.002,3656.1,3656.0,5.38402975]
[1753472005148,14.502,3656.1,3656.0,5.38402975]
[1753472005355,14.502,3656.1,3656.0,2.87202975]
[1753472005641,16.4906,3656.1,3656.0,5.38402975]
[1753472005829,14.502,3656.1,3656.0,5.38402975]
[1753472006406,15.3795,3656.1,3656.0,5.38402975]
[1753472007024,15.3795,3656.1,3656.0,2.87202975]
[1753472007342,15.3795,3656.1,3656.0,5.38402975]
[1753472007736,14.502,3656.1,3656.0,5.38402975]
[1753472007938,15.3795,3656.1,3656.0,5.38402975]
[1753472010036,15.3795,3656.1,3656.0,2.87202975]
[1753472010240,17.37815,3656.1,3656.0,0.1368]
[1753472010442,18.53575,3656.1,3656.0,2.512]
[1753472010742,18.53575,3656.1,3655.9,2.512]
[1753472011039,1.1576,3655.9,3655.5,2.73659879]
[1753472011251,7.44639599,3655.6,3655.5,0.001]
[1753472011448,7.44639599,3655.6,3655.5,2.6498]
[1753472011752,8.78439599,3655.6,3655.5,0.1378]
[1753472011951,8.78439599,3655.6,3655.5,0.001]
[1753472012256,24.82254599,3655.6,3655.5,0.001]
[1753472013155,21.26927905,3655.6,3655.5,0.001]
[1753472013332,51.95607905,3655.6,3655.5,0.001]
[1753472013649,57.46807905,3655.6,3655.5,0.001]
[1753472014561,57.62161694,3655.6,3655.5,0.001]
[1753472014854,27.62161694,3655.6,3655.5,0.001]
[1753472015958,27.46807905,3655.6,3655.5,0.001]
[1753472016116,21.67055,3655.6,3655.5,0.001]
[1753472016324,22.0471,3655.6,3655.5,0.001]
[1753472016517,19.0471,3655.6,3655.5,0.001]
[1753472016752,15.6576,3655.6,3655.5,0.001]
[1753472016922,14.5,3655.6,3655.5,0.001]
[1753472017469,14.5,3655.6,3655.5,3.20380388]
[1753472017654,0.002,3656.1,3655.8,3.87567939]
[1753472017821,0.002,3656.1,3656.0,2.73522975]
[1753472018149,0.002,3656.1,3656.0,2.87202975]
[1753472018455,0.002,3656.1,3656.0,4.23272975]
[1753472019564,0.002,3656.1,3656.0,4.26008204]
[1753472019865,0.002,3656.1,3656.0,5.59838997]
[1753472020043,0.002,3656.1,3656.0,5.57103768]
[1753472027574,1e-08,3656.5,3656.0,5.29603768]
[1753472027886,1e-08,3657.1,3657.0,6.82018181]
[1753472028044,1e-08,3657.1,3657.0,9.33718181]
[1753472028245,1e-08,3657.1,3657.0,10.69788181]
[1753472030383,1e-08,3657.1,3657.0,2.73448181]
[1753472030680,0.85320001,3657.1,3657.0,5.25048181]
[1753472031180,1e-08,3657.1,3657.0,5.25048181]
[1753472031483,0.85320001,3657.1,3657.0,5.25148181]
[1753472033647,0.85320001,3657.1,3657.0,2.73448181]
[1753472033873,0.85320001,3657.1,3657.0,5.25048181]
[1753472034487,0.85320001,3657.1,3656.2,0.20786204]
[1753472034488,1.49656001,3657.1,3656.2,0.20786204]
[1753472034691,0.20136001,3657.1,3656.7,2.73467248]
[1753472034852,15.7952,3657.0,3656.7,5.25067248]
[1753472035186,14.5,3657.0,3656.9,2.73455659]
[1753472035484,14.5,3657.0,3656.9,5.25055659]
[1753472035653,14.5,3657.0,3656.9,5.72425659]
[1753472035981,14.5,3657.0,3656.9,6.59475659]
[1753472036356,14.5,3657.0,3656.9,5.72425659]
[1753472036983,1e-08,3657.1,3657.0,2.73448181]
[1753472037190,1e-08,3657.3,3657.2,2.73433227]
[1753472037490,1e-08,3657.6,3657.2,9.40453227]
[1753472037695,1e-08,3657.6,3657.5,3.85830799]
[1753472037987,1e-08,3657.6,3657.5,6.53944906]
[1753472038287,1e-08,3657.6,3657.5,10.85630799]
[1753472038490,1e-08,3657.6,3657.5,12.788792]
[1753472039407,0.15291496,3658.6,3658.1,2.73362052]
[1753472039698,14.5,3658.7,3658.6,2.73328595]
[1753472039874,14.65275652,3658.7,3658.6,2.73328595]
[1753472040198,0.15275652,3658.7,3658.6,2.73328595]
[1753472040399,0.8532,3658.7,3658.6,2.73328595]
[1753472040600,15.3532,3658.7,3658.6,2.73328595]
[1753472040772,15.94795652,3658.7,3658.6,2.517]
[1753472041096,15.94795652,3658.7,3658.5,0.1368]
[1753472041097,17.54295217,3658.7,3658.5,0.1368]
[1753472041300,17.54295217,3658.7,3658.3,0.1368]
[1753472041301,1.126,3658.5,3658.3,0.1368]
[1753472041599,1.41555652,3658.5,3658.0,2.6528]
[1753472041799,1.2628,3658.5,3658.0,5.38651794]
[1753472041970,1.2952,3658.4,3658.0,5.38651794]
[1753472042171,1.2628,3658.5,3658.1,2.73364875]
[1753472042416,1.2952,3658.4,3658.1,2.73364875]
[1753472042706,1.2952,3658.3,3658.0,5.38651652]
[1753472042917,0.8532,3658.2,3658.1,2.73363641]
[1753472043112,1.2952,3658.2,3658.0,5.38652412]
[1753472043273,1.2952,3658.2,3658.1,2.73365955]
[1753472043470,1.2628,3658.5,3658.0,2.6528]
[1753472043708,1.126,3658.5,3658.4,2.73343538]
[1753472044006,14.5,3658.7,3658.6,2.73328595]
[1753472044507,15.3532,3658.7,3658.6,2.73328595]
[1753472045084,14.5,3658.7,3658.5,5.25133571]
[1753472045266,14.5,3658.7,3658.6,2.73328595]
[1753472045971,15.3532,3658.7,3658.6,2.73328595]
[1753472046275,15.3532,3658.7,3658.5,5.25133571]
[1753472046276,15.3532,3658.7,3658.5,5.25135482]
[1753472046481,1.2952,3658.6,3658.4,5.38821237]
[1753472046812,14.5,3658.7,3658.4,5.38821237]
[1753472046813,14.5,3658.7,3658.5,2.73336066]
[1753472046975,14.942,3658.7,3658.5,2.73336066]
[1753472047376,1.2952,3658.6,3658.4,2.6548]
[1753472047678,0.8532,3658.5,3658.4,5.38820592]
[1753472049119,2.4415,3658.5,3658.4,2.6528]
[1753472049415,2.4415,3658.5,3658.4,5.38623538]
[1753472049607,1.5883,3658.5,3658.4,5.38623538]
[1753472049812,2.4415,3658.5,3658.4,5.38623538]
[1753472050028,1.9995,3658.5,3658.4,5.38623538]
[1753472050222,1.1227,3658.8,3658.6,2.73326756]
[1753472050512,14.5,3658.7,3658.6,2.73326756]
[1753472050897,14.5,3658.7,3658.4,5.3861713]
[1753472050898,15.3532,3658.7,3658.5,2.73333313]
[1753472051104,15.3532,3658.7,3658.6,2.73328595]
[1753472052690,14.5,3658.7,3658.6,2.73328595]
[1753472052883,14.5,3658.7,3658.6,2.87008595]
[1753472053806,14.5,3658.7,3658.6,3.34378595]
[1753472054213,14.5,3658.7,3658.6,2.87008595]
[1753472054409,14.5,3658.7,3658.6,5.38508595]
[1753472055223,14.5,3658.7,3658.6,6.72928595]
[1753472058325,0.002,3658.9,3658.8,2.73313654]
[1753472058523,0.002,3658.9,3658.8,5.24613654]
[1753472058725,0.002,3658.9,3658.8,5.38293654]
[1753472063076,0.8883,3658.9,3658.8,5.38293654]
[1753472063576,0.002,3658.9,3658.8,5.38093654]
[1753472064075,0.8883,3658.9,3658.8,5.38093654]
[1753472065466,0.8883,3658.9,3658.8,5.37993654]
[1753472065694,4.27983,3658.9,3658.8,0.1368]
[1753472066005,6.78983,3658.9,3658.8,2.73313654]
[1753472066204,4.5398,3658.9,3658.8,2.73313654]
[1753472066390,19.0398,3658.9,3658.8,2.73313654]
[1753472067203,19.0398,3658.9,3658.7,2.73317816]
[1753472067403,18.1535,3658.9,3658.7,2.73317816]
[1753472067711,1.3458,3658.8,3658.7,2.73317816]
[1753472068275,0.8863,3658.8,3658.7,2.73317816]
[1753472069105,0.8863,3658.8,3658.7,2.73321124]
[1753472070307,1.3458,3658.8,3658.6,0.1368]
[1753472070508,0.8863,3658.8,3658.5,2.87010986]
[1753472070690,1.3458,3658.7,3658.6,2.73326608]
[1753472071093,15.8458,3658.7,3658.6,2.73326608]
[1753472071288,15.3863,3658.7,3658.5,2.6468]
[1753472071596,1.3458,3658.6,3658.5,2.87015077]
[1753472071902,1.3458,3658.6,3658.5,2.6468]
[1753472072104,1.3458,3658.6,3658.5,5.38016066]
[1753472072611,0.8863,3658.6,3658.5,5.38016066]
[1753472073482,0.8863,3658.6,3658.5,2.6468]
[1753472073682,0.8863,3658.6,3658.5,0.1368]
[1753472073933,3.18153,3658.6,3658.3,2.51]
[1753472074137,1.1227,3658.5,3658.1,5.38045884]
[1753472074277,11.4823657,3658.5,3657.9,2.73378538]
[1753472074486,6.58928465,3658.4,3657.9,2.51]
[1753472074712,0.1368,3658.3,3657.9,2.51]
[1753472074894,15.8458,3658.2,3657.9,2.51]
[1753472075093,0.8863,3658.1,3657.8,2.87068285]
[1753472075295,1.0733,3658.0,3657.8,2.51]
[1753472075536,1.0733,3658.0,3657.2,0.001]
[1753472075537,1.0733,3658.0,3657.7,0.1368]
[1753472075834,15.8458,3657.9,3657.6,5.24399936]
[1753472076184,0.8863,3657.8,3657.6,2.73399936]
[1753472076592,0.8863,3657.7,3657.6,2.73399936]
[1753472076796,15.3863,3657.7,3657.6,2.73399936]
[1753472078282,15.8458,3657.7,3657.4,2.511]
[1753472078482,1.3458,3657.6,3657.3,2.511]
[1753472078711,0.4595,3657.6,3657.3,2.511]
[1753472078888,0.8863,3657.5,3657.3,2.511]
[1753472079287,0.8863,3657.4,3657.3,5.24524473]
[1753472079580,0.8863,3657.4,3657.3,2.511]
[1753472079782,0.8863,3657.4,3657.2,0.1378]
[1753472080011,9.2397746,3657.3,3657.2,0.001]
[1753472080223,2.95928972,3657.3,3657.2,0.001]
[1753472080438,2.49978972,3657.3,3657.2,0.001]
[1753472080752,4.3111,3657.6,3657.2,0.001]
[1753472080915,2.511,3657.5,3657.2,4.06068756]
[1753472081241,14.5,3657.7,3657.6,2.73403324]
[1753472081818,14.5,3657.7,3657.6,3.17053324]
[1753472082039,14.5,3657.7,3657.6,2.73403324]
[1753472083307,2.511,3657.9,3657.8,2.73388375]
[1753472083602,2.511,3658.0,3657.6,0.1368]
[1753472083807,14.5,3657.9,3657.8,0.1368]
[1753472084030,19.5146,3657.9,3657.2,2.512]
[1753472084256,6.28048488,3657.7,3657.4,0.1368]
[1753472084551,0.8863,3657.8,3657.2,0.001]
[1753472084846,0.8863,3657.8,3657.5,2.73408878]
[1753472084847,2.511,3657.7,3657.5,2.73408878]
[1753472085052,2.511,3657.8,3657.5,2.73408878]
[1753472085256,0.8863,3657.7,3657.5,2.73408878]
[1753472085549,2.511,3657.8,3657.6,2.73403324]
[1753472085715,2.511,3657.8,3657.4,2.87096657]
[1753472085716,2.511,3657.8,3657.7,2.73395849]
[1753472085920,14.5,3657.9,3657.8,2.73388375]
[1753472086232,17.011,3657.9,3657.8,3.17038375]
[1753472086738,14.5,3657.9,3657.8,3.30718375]
[1753472090241,14.5,3657.9,3657.8,2.87068375]
[1753472090741,15.3742,3657.9,3657.8,0.1368]
[1753472092437,14.5,3657.9,3657.8,0.1368]
[1753472092641,15.3742,3657.9,3657.8,2.87068375]
[1753472093044,14.5,3657.9,3657.8,2.87068375]
[1753472094536,14.5,3657.9,3657.8,3.32608375]
[1753472094839,14.5,3657.9,3657.8,2.87068375]
[1753472096051,14.5,3657.9,3657.8,3.32608375]
[1753472096526,14.5,3657.9,3657.8,2.87068375]
[1753472097649,14.5,3657.9,3657.8,2.87168375]
[1753472099663,15.3742,3657.9,3657.8,0.1378]
[1753472100255,17.20886,3657.9,3657.8,0.1378]
[1753472100550,55.28100159,3657.9,3657.8,0.001]
[1753472100866,55.28100159,3657.9,3657.2,0.001]
[1753472100867,3.90145751,3657.3,3657.2,0.001]
[1753472101163,3.90145751,3657.3,3656.3,0.001]
[1753472101164,3.90198094,3656.6,3656.3,0.001]
[1753472101313,43.51056579,3656.6,3656.3,0.001]
[1753472101519,62.34416579,3656.6,3656.3,0.001]
[1753472102152,62.89416579,3656.6,3656.3,0.001]
[1753472102853,59.4052424,3656.6,3656.3,0.001]
[1753472103157,26.31893846,3656.6,3656.3,0.001]
[1753472105365,21.43345755,3656.6,3656.3,0.001]
[1753472105534,25.04213733,3656.6,3656.3,0.001]
[1753472105859,25.50153733,3656.6,3656.3,0.001]
[1753472107526,22.30735639,3656.6,3656.3,0.001]
[1753472107740,24.78718094,3656.6,3656.3,0.001]
[1753472108965,22.0524,3656.6,3656.3,0.001]
[1753472109174,14.5,3656.6,3656.5,4.05255573]
[1753472109330,17.011,3656.6,3656.5,0.001]
[1753472110469,17.8852,3656.6,3656.5,0.001]
[1753472110668,20.00681064,3656.6,3656.5,0.001]
[1753472112882,19.13261064,3656.6,3656.5,0.001]
[1753472113945,17.011,3656.6,3656.5,0.001]
[1753472118943,14.5,3656.6,3656.5,2.73585573]
[1753472119140,17.012,3656.6,3656.5,0.5932]
[1753472119439,17.012,3656.6,3656.5,0.1378]
[1753472119643,17.8862,3656.6,3656.5,0.001]
[1753472120355,20.58493401,3656.6,3656.5,0.001]
[1753472121142,20.12213401,3656.6,3656.5,0.001]
[1753472121774,17.8862,3656.6,3656.5,0.001]
[1753472123754,15.3742,3656.6,3656.5,0.001]
[1753472123953,17.8862,3656.6,3656.5,0.001]
[1753472124300,18.349,3656.6,3656.5,0.001]
[1753472124888,56.2899584,3656.6,3656.5,0.001]
[1753472125306,62.58223573,3656.6,3656.5,0.001]
[1753472127207,56.2899584,3656.6,3656.5,0.001]
[1753472128584,55.8261584,3656.6,3656.5,0.001]
[1753472129205,52.54137746,3656.6,3656.5,0.001]
[1753472129412,24.40366171,3656.6,3656.5,0.001]
[1753472129706,55.70295644,3656.6,3656.5,0.001]
[1753472129866,56.25295644,3656.6,3656.5,0.001]
[1753472130304,57.89895644,3656.6,3656.5,0.001]
[1753472130470,2.73493053,3656.4,3656.3,0.001]
[1753472130691,42.05770603,3656.4,3656.3,0.001]
[1753472130868,43.35700603,3656.4,3656.3,0.001]
[1753472131206,57.85700603,3656.4,3656.3,0.001]
[1753472132315,57.85761475,3656.4,3656.3,0.001]
[1753472134496,27.85761475,3656.4,3656.3,0.001]
[1753472134683,57.85761475,3656.4,3656.3,0.001]
[1753472135204,54.8824501,3656.4,3656.3,0.001]
[1753472135390,51.8499501,3656.4,3656.3,0.001]
[1753472135713,54.9119501,3656.4,3656.3,0.001]
[1753472136284,54.3619501,3656.4,3656.3,0.001]
[1753472136529,23.2926501,3656.4,3656.3,1.2728]
[1753472136832,53.2926501,3656.4,3656.3,1.2728]
[1753472137137,53.8426501,3656.4,3656.3,0.4291]
[1753472137320,53.8426501,3656.4,3656.3,0.001]
[1753472138498,53.8426501,3656.4,3656.3,0.4291]
[1753472139922,53.8426501,3656.4,3656.3,0.001]
[1753472141138,53.8429704,3656.4,3656.3,0.001]
[1753472141630,53.8429704,3656.4,3656.3,0.4291]
[1753472141837,23.8429704,3656.4,3656.3,0.4291]
[1753472142137,53.8429704,3656.4,3656.3,0.4291]
[1753472142336,53.8429704,3656.4,3656.3,0.001]
[1753472143233,50.55803987,3656.4,3656.3,0.001]
[1753472143417,15.04603987,3656.4,3656.3,1.2728]
[1753472143626,17.42123987,3656.4,3656.3,1.51311]
[1753472144003,20.42123987,3656.4,3656.3,4.24811533]
[1753472144307,14.90923987,3656.4,3656.3,4.00780533]
[1753472144510,0.40923987,3656.4,3656.3,5.17520533]
[1753472144709,0.002,3657.2,3657.0,3.90180736]
[1753472144914,2.512,3657.1,3657.0,3.90188181]
[1753472145117,2.512,3657.1,3657.0,5.17368181]
[1753472145317,2.512,3657.1,3657.0,5.31048181]
[1753472145705,2.514,3657.2,3657.1,2.73440704]
[1753472145906,17.014,3657.2,3657.1,2.73440704]
[1753472146102,17.014,3657.2,3657.1,0.4281]
[1753472146609,17.014,3657.2,3657.1,1.2718]
[1753472147644,17.014,3657.2,3657.1,4.00620704]
[1753472148911,17.014,3657.2,3657.1,1.2718]
[1753472149310,17.014,3657.2,3657.1,0.4281]
[1753472150535,17.013,3657.2,3657.1,0.4281]
[1753472151516,14.502,3657.2,3657.1,0.4281]
[1753472151846,17.013,3657.2,3657.1,0.4281]
[1753472154125,14.502,3657.2,3657.1,0.4281]
[1753472154320,17.013,3657.2,3657.1,0.4281]
[1753472154725,17.013,3657.2,3657.1,1.2725]
[1753472155449,14.502,3657.2,3657.1,1.2725]